[Event "FIDE Women's Grand Swiss 2023"]
[Site "Villa Marina, Douglas, Isle of Man, Isle Of Man"]
[Date "2023.10.29"]
[Round "5.18"]
[White "Divya, Deshmukh"]
[Black "Dronavalli, Harika"]
[Result "0-1"]
[TimeControl "40/90 + 30 + 30s/move"]
[WhiteFideId "35006916"]
[BlackFideId "5015197"]
[WhiteElo "2408"]
[BlackElo "2502"]

1. e4 {[%clk 01:30:58]} {[%emt 00:00:02]} e5 {[%clk 01:30:50]} {[%emt
00:00:11]} 2. Nf3 {[%clk 01:31:25]} {[%emt 00:00:03]} Nc6 {[%clk 01:31:07]}
{[%emt 00:00:07]} 3. Bb5 {[%clk 01:31:52]} {[%emt 00:00:08]} Nf6 {[%clk
01:31:29]} {[%emt 00:00:09]} 4. O-O {[%clk 01:32:17]} {[%emt 00:00:05]} Nxe4
{[%clk 01:31:27]} {[%emt 00:00:31]} 5. Re1 {[%clk 01:32:43]} {[%emt 00:00:04]}
Nd6 {[%clk 01:31:23]} {[%emt 00:00:34]} 6. Nxe5 {[%clk 01:33:07]} {[%emt
00:00:06]} Be7 {[%clk 01:31:05]} {[%emt 00:00:48]} 7. Bf1 {[%clk 01:33:27]}
{[%emt 00:00:10]} Nxe5 {[%clk 01:31:02]} {[%emt 00:00:33]} 8. Rxe5 {[%clk
01:33:55]} {[%emt 00:00:03]} O-O {[%clk 01:31:06]} {[%emt 00:00:25]} 9. d4
{[%clk 01:34:22]} {[%emt 00:00:03]} Bf6 {[%clk 01:31:21]} {[%emt 00:00:16]} 10.
Re1 {[%clk 01:34:03]} {[%emt 00:00:48]} Nf5 {[%clk 01:29:54]} {[%emt 00:01:57]}
11. c3 {[%clk 01:30:47]} {[%emt 00:03:47]} d5 {[%clk 01:23:17]} {[%emt
00:07:07]} 12. Bf4 {[%clk 01:30:21]} {[%emt 00:00:56]} c6 {[%clk 01:22:00]}
{[%emt 00:01:47]} 13. Nd2 {[%clk 01:27:25]} {[%emt 00:03:26]} Nh4 {[%clk
01:20:18]} {[%emt 00:02:11]} 14. Bd3 {[%clk 01:19:06]} {[%emt 00:08:50]} Bf5
{[%clk 01:18:42]} {[%emt 00:02:06]} 15. Bxf5 {[%clk 01:15:37]} {[%emt
00:03:59]} Nxf5 {[%clk 01:18:29]} {[%emt 00:00:43]} 16. Qg4 {[%clk 01:13:55]}
{[%emt 00:02:11]} Nh4 {[%clk 01:06:50]} {[%emt 00:12:09]} 17. Nb3 {[%clk
00:56:05]} {[%emt 00:18:21]} Ng6 {[%clk 01:01:47]} {[%emt 00:05:33]} 18. Bg3
{[%clk 00:40:32]} {[%emt 00:16:03]} Be7 {[%clk 00:58:41]} {[%emt 00:03:35]} 19.
Qf5 {[%clk 00:38:14]} {[%emt 00:02:48]} Bd6 {[%clk 00:48:06]} {[%emt 00:11:05]}
20. Nc5 {[%clk 00:35:29]} {[%emt 00:03:16]} Bxc5 {[%clk 00:39:18]} {[%emt
00:09:17]} 21. dxc5 {[%clk 00:35:06]} {[%emt 00:00:54]} Re8 {[%clk 00:39:34]}
{[%emt 00:00:13]} 22. Bd6 {[%clk 00:34:21]} {[%emt 00:01:15]} Qc8 {[%clk
00:39:16]} {[%emt 00:00:46]} 23. Qg5 {[%clk 00:26:15]} {[%emt 00:08:38]} h6
{[%clk 00:32:58]} {[%emt 00:06:48]} 24. Qh5 {[%clk 00:25:30]} {[%emt 00:01:15]}
Qd7 {[%clk 00:30:27]} {[%emt 00:03:01]} 25. Kf1 {[%clk 00:25:10]} {[%emt
00:00:51]} Re4 {[%clk 00:28:34]} {[%emt 00:02:20]} 26. Rxe4 {[%clk 00:12:46]}
{[%emt 00:12:56]} dxe4 {[%clk 00:28:59]} {[%emt 00:00:06]} 27. Qh3 {[%clk
00:12:20]} {[%emt 00:00:55]} f5 {[%clk 00:22:40]} {[%emt 00:06:50]} 28. f3
{[%clk 00:07:12]} {[%emt 00:05:38]} e3 {[%clk 00:17:57]} {[%emt 00:05:12]} 29.
Qg3 {[%clk 00:02:48]} {[%emt 00:04:54]} Qe6 {[%clk 00:16:03]} {[%emt 00:02:24]}
30. Qe1 {[%clk 00:03:14]} {[%emt 00:00:05]} Re8 {[%clk 00:15:03]} {[%emt
00:01:29]} 31. Qe2 {[%clk 00:03:40]} {[%emt 00:00:05]} f4 {[%clk 00:15:09]}
{[%emt 00:00:24]} 32. b3 {[%clk 00:03:28]} {[%emt 00:00:43]} Qf6 {[%clk
00:13:42]} {[%emt 00:01:56]} 33. Rc1 {[%clk 00:02:16]} {[%emt 00:01:41]} Kh8
{[%clk 00:12:59]} {[%emt 00:01:12]} 34. g3 {[%clk 00:02:12]} {[%emt 00:00:35]}
h5 {[%clk 00:08:46]} {[%emt 00:04:44]} 35. Rd1 {[%clk 00:00:47]} {[%emt
00:01:54]} Qxc3 {[%clk 00:07:15]} {[%emt 00:02:01]} 36. gxf4 {[%clk 00:00:47]}
{[%emt 00:00:30]} Qf6 {[%clk 00:07:13]} {[%emt 00:00:32]} 37. Be5 {[%clk
00:01:07]} {[%emt 00:00:11]} Qf5 {[%clk 00:04:45]} {[%emt 00:02:58]} 38. Qxe3
{[%clk 00:01:25]} {[%emt 00:00:12]} Nxe5 {[%clk 00:04:05]} {[%emt 00:01:09]} 39.
fxe5 {[%clk 00:01:16]} {[%emt 00:00:39]} Rxe5 {[%clk 00:04:02]} {[%emt
00:00:33]} 40. Rd8+ {[%clk 00:00:34]} {[%emt 00:01:13]} Kh7 {[%clk 00:04:28]}
{[%emt 00:00:04]} 41. Qd3 {[%clk 00:00:44]} {[%emt 00:00:20]} Rxc5 {[%clk
00:03:01]} {[%emt 00:01:57]} 42. Qxf5+ {[%clk 00:23:43]} {[%emt 00:07:31]} Rxf5
{[%clk 00:32:50]} {[%emt 00:00:41]} 43. Kf2 {[%clk 00:21:49]} {[%emt 00:02:24]}
Rd5 {[%clk 00:26:45]} {[%emt 00:06:30]} 44. Rb8 {[%clk 00:22:15]} {[%emt
00:00:09]} Rd2+ {[%clk 00:22:21]} {[%emt 00:04:53]} 45. Kg3 {[%clk 00:22:41]}
{[%emt 00:00:05]} Rd7 {[%clk 00:15:26]} {[%emt 00:07:25]} 46. a4 {[%clk
00:20:05]} {[%emt 00:03:06]} Kg6 {[%clk 00:14:41]} {[%emt 00:01:16]} 47. b4
{[%clk 00:19:54]} {[%emt 00:00:40]} a6 {[%clk 00:14:33]} {[%emt 00:00:38]} 48.
b5 {[%clk 00:19:49]} {[%emt 00:00:35]} cxb5 {[%clk 00:14:26]} {[%emt 00:00:37]}
49. axb5 {[%clk 00:20:17]} {[%emt 00:00:02]} axb5 {[%clk 00:14:49]} {[%emt
00:00:07]} 50. Rc8 {[%clk 00:20:36]} {[%emt 00:00:10]} Rd6 {[%clk 00:15:07]}
{[%emt 00:00:13]} 51. Kf4 {[%clk 00:20:13]} {[%emt 00:00:53]} b4 {[%clk
00:15:14]} {[%emt 00:00:22]} 52. Rc2 {[%clk 00:17:48]} {[%emt 00:02:55]} b3
{[%clk 00:13:55]} {[%emt 00:01:50]} 53. Rb2 {[%clk 00:17:49]} {[%emt 00:00:29]}
Rb6 {[%clk 00:13:43]} {[%emt 00:00:42]} 54. Ke5 {[%clk 00:18:07]} {[%emt
00:00:12]} Rb4 {[%clk 00:14:02]} {[%emt 00:00:11]} 55. f4 {[%clk 00:17:37]}
{[%emt 00:00:59]} Kf7 {[%clk 00:13:33]} {[%emt 00:01:00]} 56. Kf5 {[%clk
00:16:53]} {[%emt 00:01:14]} g6+ {[%clk 00:13:48]} {[%emt 00:00:14]} 57. Ke5
{[%clk 00:16:54]} {[%emt 00:00:29]} h4 {[%clk 00:12:58]} {[%emt 00:01:20]} 58.
f5 {[%clk 00:16:23]} {[%emt 00:01:01]} gxf5 {[%clk 00:11:07]} {[%emt 00:02:22]}
59. Kxf5 {[%clk 00:16:46]} {[%emt 00:00:07]} Ke7 {[%clk 00:11:27]} {[%emt
00:00:09]} 60. Ke5 {[%clk 00:15:08]} {[%emt 00:02:09]} Kd7 {[%clk 00:11:51]}
{[%emt 00:00:06]} 61. Kd5 {[%clk 00:15:35]} {[%emt 00:00:02]} b6 {[%clk
00:12:08]} {[%emt 00:00:13]} 62. h3 {[%clk 00:16:03]} {[%emt 00:00:02]} Kc7
{[%clk 00:12:27]} {[%emt 00:00:10]} 0-1

[Event "FIDE Women's Grand Swiss 2023"]
[Site "Villa Marina, Douglas, Isle of Man, Isle Of Man"]
[Date "2023.10.29"]
[Round "5.19"]
[White "Mkrtchyan, Mariam"]
[Black "Batsiashvili, Nino"]
[Result "1/2-1/2"]
[TimeControl "40/90 + 30 + 30s/move"]
[WhiteFideId "13310828"]
[BlackFideId "13602993"]
[WhiteElo "2343"]
[BlackElo "2475"]

1. d4 {[%clk 01:30:57]} {[%emt 00:00:02]} Nf6 {[%clk 01:30:57]} {[%emt
00:00:04]} 2. c4 {[%clk 01:31:22]} {[%emt 00:00:05]} c5 {[%clk 01:31:24]}
{[%emt 00:00:03]} 3. d5 {[%clk 01:31:45]} {[%emt 00:00:08]} b5 {[%clk
01:31:47]} {[%emt 00:00:06]} 4. cxb5 {[%clk 01:31:58]} {[%emt 00:00:17]} a6
{[%clk 01:32:12]} {[%emt 00:00:06]} 5. bxa6 {[%clk 01:32:19]} {[%emt 00:00:08]}
e6 {[%clk 01:32:36]} {[%emt 00:00:05]} 6. dxe6 {[%clk 01:29:53]} {[%emt
00:02:57]} fxe6 {[%clk 01:33:00]} {[%emt 00:00:05]} 7. Nc3 {[%clk 01:30:20]}
{[%emt 00:00:04]} Bxa6 {[%clk 01:29:49]} {[%emt 00:03:42]} 8. g3 {[%clk
01:30:38]} {[%emt 00:00:11]} d5 {[%clk 01:27:19]} {[%emt 00:02:59]} 9. Bg2
{[%clk 01:30:57]} {[%emt 00:00:12]} Nc6 {[%clk 01:26:33]} {[%emt 00:01:15]} 10.
Nh3 {[%clk 01:31:12]} {[%emt 00:00:16]} Bd6 {[%clk 01:24:09]} {[%emt 00:02:54]}
11. O-O {[%clk 01:30:56]} {[%emt 00:00:46]} O-O {[%clk 01:23:37]} {[%emt
00:01:01]} 12. Bf4 {[%clk 01:31:24]} {[%emt 00:00:03]} Kh8 {[%clk 00:59:10]}
{[%emt 00:24:56]} 13. Re1 {[%clk 01:23:49]} {[%emt 00:08:06]} Ne5 {[%clk
00:50:00]} {[%emt 00:09:40]} 14. e4 {[%clk 01:06:04]} {[%emt 00:18:15]} d4
{[%clk 00:49:57]} {[%emt 00:00:33]} 15. Na4 {[%clk 01:04:54]} {[%emt 00:01:40]}
Bb5 {[%clk 00:38:06]} {[%emt 00:12:21]} 16. Nxc5 {[%clk 00:59:47]} {[%emt
00:05:37]} Bxc5 {[%clk 00:38:27]} {[%emt 00:00:09]} 17. Bxe5 {[%clk 01:00:05]}
{[%emt 00:00:11]} d3 {[%clk 00:38:55]} {[%emt 00:00:03]} 18. Bc3 {[%clk
00:56:29]} {[%emt 00:04:06]} Qd7 {[%clk 00:37:38]} {[%emt 00:01:48]} 19. Kh1
{[%clk 00:54:33]} {[%emt 00:02:25]} e5 {[%clk 00:28:48]} {[%emt 00:09:20]} 20.
f3 {[%clk 00:43:27]} {[%emt 00:11:36]} Ra6 {[%clk 00:24:11]} {[%emt 00:05:07]}
21. Qd2 {[%clk 00:41:27]} {[%emt 00:02:30]} Re8 {[%clk 00:22:36]} {[%emt
00:02:05]} 22. Nf2 {[%clk 00:39:07]} {[%emt 00:02:49]} Qa7 {[%clk 00:20:48]}
{[%emt 00:02:19]} 23. Nd1 {[%clk 00:32:49]} {[%emt 00:06:48]} Rxa2 {[%clk
00:20:07]} {[%emt 00:01:11]} 24. Rxa2 {[%clk 00:33:18]} {[%emt 00:00:02]} Qxa2
{[%clk 00:20:35]} {[%emt 00:00:01]} 25. f4 {[%clk 00:33:10]} {[%emt 00:00:39]}
exf4 {[%clk 00:19:30]} {[%emt 00:01:35]} 26. gxf4 {[%clk 00:24:55]} {[%emt
00:08:44]} Qf7 {[%clk 00:19:08]} {[%emt 00:00:52]} 27. f5 {[%clk 00:23:02]}
{[%emt 00:02:23]} Nh5 {[%clk 00:13:42]} {[%emt 00:05:56]} 28. Qg5 {[%clk
00:22:00]} {[%emt 00:01:32]} Bc6 {[%clk 00:12:57]} {[%emt 00:01:15]} 29. f6
{[%clk 00:16:49]} {[%emt 00:05:41]} Bf8 {[%clk 00:13:17]} {[%emt 00:00:10]} 30.
fxg7+ {[%clk 00:14:23]} {[%emt 00:02:56]} Bxg7 {[%clk 00:13:32]} {[%emt
00:00:15]} 31. Bxg7+ {[%clk 00:10:09]} {[%emt 00:04:45]} Nxg7 {[%clk 00:14:00]}
{[%emt 00:00:02]} 32. Qc5 {[%clk 00:09:56]} {[%emt 00:00:43]} Qd7 {[%clk
00:11:30]} {[%emt 00:02:59]} 33. Nc3 {[%clk 00:09:41]} {[%emt 00:00:45]} Ne6
{[%clk 00:10:37]} {[%emt 00:01:23]} 34. Qe5+ {[%clk 00:09:36]} {[%emt
00:00:35]} Ng7 {[%clk 00:11:00]} {[%emt 00:00:08]} 35. Qf6 {[%clk 00:08:39]}
{[%emt 00:01:27]} Kg8 {[%clk 00:10:02]} {[%emt 00:01:26]} 36. Rd1 {[%clk
00:08:10]} {[%emt 00:01:00]} Rf8 {[%clk 00:09:49]} {[%emt 00:00:43]} 37. Qg5
{[%clk 00:05:55]} {[%emt 00:02:46]} Rf2 {[%clk 00:05:08]} {[%emt 00:05:09]} 38.
b4 {[%clk 00:03:49]} {[%emt 00:02:38]} d2 {[%clk 00:03:26]} {[%emt 00:02:11]}
39. b5 {[%clk 00:01:58]} {[%emt 00:02:21]} Bb7 {[%clk 00:02:00]} {[%emt
00:01:56]} 40. Qe3 {[%clk 00:01:25]} {[%emt 00:01:03]} Qf7 {[%clk 00:00:53]}
{[%emt 00:01:37]} 41. Kg1 {[%clk 00:29:51]} {[%emt 00:02:04]} Rf6 {[%clk
00:24:03]} {[%emt 00:07:20]} 42. Rxd2 {[%clk 00:28:32]} {[%emt 00:01:48]} Rg6
{[%clk 00:23:55]} {[%emt 00:00:38]} 43. Rd8+ {[%clk 00:27:42]} {[%emt
00:01:21]} Ne8 {[%clk 00:22:50]} {[%emt 00:01:35]} 44. Qd4 {[%clk 00:22:41]}
{[%emt 00:05:31]} Qe7 {[%clk 00:18:46]} {[%emt 00:04:34]} 45. Qd7 {[%clk
00:19:02]} {[%emt 00:04:09]} Kf7 {[%clk 00:17:06]} {[%emt 00:02:10]} 46. Kf2
{[%clk 00:15:02]} {[%emt 00:04:30]} Nd6 {[%clk 00:17:15]} {[%emt 00:00:21]} 47.
Bf3 {[%clk 00:13:08]} {[%emt 00:02:24]} Rf6 {[%clk 00:09:49]} {[%emt 00:07:56]}
48. Ke2 {[%clk 00:13:11]} {[%emt 00:00:27]} Rh6 {[%clk 00:08:40]} {[%emt
00:01:39]} 49. e5 {[%clk 00:03:34]} {[%emt 00:10:07]} Rxh2+ {[%clk 00:07:16]}
{[%emt 00:01:54]} 50. Kd3 {[%clk 00:02:36]} {[%emt 00:01:28]} Bxf3 {[%clk
00:06:32]} {[%emt 00:01:14]} 51. exd6 {[%clk 00:02:31]} {[%emt 00:00:35]} Qxd7
{[%clk 00:06:58]} {[%emt 00:00:04]} 52. Rxd7+ {[%clk 00:03:00]} {[%emt
00:00:01]} Ke6 {[%clk 00:07:13]} {[%emt 00:00:16]} 53. Rd8 {[%clk 00:03:28]}
{[%emt 00:00:01]} h5 {[%clk 00:06:32]} {[%emt 00:01:11]} 54. Ke3 {[%clk
00:03:18]} {[%emt 00:00:40]} Rh3 {[%clk 00:04:37]} {[%emt 00:02:25]} 55. Kf4
{[%clk 00:03:43]} {[%emt 00:00:04]} Bh1 {[%clk 00:03:43]} {[%emt 00:01:25]} 56.
Ne2 {[%clk 00:03:27]} {[%emt 00:00:46]} Rd3 {[%clk 00:04:02]} {[%emt 00:00:10]}
57. Rh8 {[%clk 00:01:35]} {[%emt 00:02:23]} Rf3+ {[%clk 00:01:37]} {[%emt
00:02:56]} 58. Kg5 {[%clk 00:01:35]} {[%emt 00:00:28]} Kxd6 {[%clk 00:01:48]}
{[%emt 00:00:19]} 59. Rxh5 {[%clk 00:01:37]} {[%emt 00:00:28]} Re3 {[%clk
00:02:02]} {[%emt 00:00:16]} 60. Nd4 {[%clk 00:00:52]} {[%emt 00:01:16]} Re1
{[%clk 00:02:26]} {[%emt 00:00:06]} 61. Kf6 {[%clk 00:00:51]} {[%emt 00:00:31]}
Be4 {[%clk 00:01:50]} {[%emt 00:01:05]} 62. b6 {[%clk 00:00:35]} {[%emt
00:00:48]} Rf1 {[%clk 00:02:07]} {[%emt 00:00:12]} 63. Kg7 {[%clk 00:00:53]}
{[%emt 00:00:12]} Rb1 {[%clk 00:02:09]} {[%emt 00:00:27]} 64. Nb5+ {[%clk
00:00:47]} {[%emt 00:00:38]} Kc6 {[%clk 00:01:25]} {[%emt 00:01:14]} 65. b7
{[%clk 00:00:45]} {[%emt 00:00:32]} Kxb7 {[%clk 00:01:39]} {[%emt 00:00:16]} 66.
Nd6+ {[%clk 00:01:11]} {[%emt 00:00:04]} Kc6 {[%clk 00:01:58]} {[%emt
00:00:09]} 67. Nxe4 {[%clk 00:01:40]} {[%emt 00:00:03]} Rf1 {[%clk 00:02:19]}
{[%emt 00:00:07]} 68. Nf6 {[%clk 00:02:01]} {[%emt 00:00:10]} Kd6 {[%clk
00:02:25]} {[%emt 00:00:22]} 69. Kf7 {[%clk 00:02:30]} {[%emt 00:00:03]} Kc6
{[%clk 00:02:48]} {[%emt 00:00:07]} 70. Rh2 {[%clk 00:02:49]} {[%emt 00:00:12]}
Kd6 {[%clk 00:03:07]} {[%emt 00:00:10]} 71. Re2 {[%clk 00:03:12]} {[%emt
00:00:07]} Rh1 {[%clk 00:02:53]} {[%emt 00:00:44]} 72. Rd2+ {[%clk 00:03:14]}
{[%emt 00:00:28]} Kc6 {[%clk 00:03:13]} {[%emt 00:00:09]} 73. Ke6 {[%clk
00:03:40]} {[%emt 00:00:05]} Re1 {[%clk 00:03:38]} {[%emt 00:00:05]} 74. Kf5
{[%clk 00:04:09]} {[%emt 00:00:01]} Rf1+ {[%clk 00:02:47]} {[%emt 00:01:21]} 75.
Ke5 {[%clk 00:04:38]} {[%emt 00:00:01]} Rh1 {[%clk 00:03:08]} {[%emt 00:00:08]}
76. Rc2+ {[%clk 00:05:04]} {[%emt 00:00:05]} Kb5 {[%clk 00:03:28]} {[%emt
00:00:09]} 77. Ne4 {[%clk 00:05:06]} {[%emt 00:00:29]} Kb4 {[%clk 00:03:38]}
{[%emt 00:00:18]} 78. Rc8 {[%clk 00:05:09]} {[%emt 00:00:29]} Re1 {[%clk
00:03:41]} {[%emt 00:00:25]} 79. Kd4 {[%clk 00:04:38]} {[%emt 00:01:04]} Rd1
{[%clk 00:04:05]} {[%emt 00:00:05]} 80. Ke3 {[%clk 00:04:59]} {[%emt 00:00:08]}
Re1+ {[%clk 00:04:27]} {[%emt 00:00:08]} 81. Kd3 {[%clk 00:05:27]} {[%emt
00:00:03]} Rd1+ {[%clk 00:04:25]} {[%emt 00:00:30]} 82. Nd2 {[%clk 00:05:54]}
{[%emt 00:00:05]} Kb5 {[%clk 00:04:46]} {[%emt 00:00:06]} 83. Rc2 {[%clk
00:06:05]} {[%emt 00:00:21]} Rh1 {[%clk 00:04:28]} {[%emt 00:00:49]} 84. Kd4
{[%clk 00:06:32]} {[%emt 00:00:04]} Rh4+ {[%clk 00:03:28]} {[%emt 00:01:29]} 85.
Ne4 {[%clk 00:06:57]} {[%emt 00:00:05]} Kb6 {[%clk 00:03:55]} {[%emt 00:00:03]}
86. Kd5 {[%clk 00:07:00]} {[%emt 00:00:27]} Rh5+ {[%clk 00:04:18]} {[%emt
00:00:07]} 87. Ke6 {[%clk 00:07:27]} {[%emt 00:00:03]} Rh6 {[%clk 00:04:41]}
{[%emt 00:00:07]} 88. Nf6 {[%clk 00:07:53]} {[%emt 00:00:04]} Kb5 {[%clk
00:04:53]} {[%emt 00:00:17]} 89. Ke5 {[%clk 00:08:18]} {[%emt 00:00:06]} Rh1
{[%clk 00:05:10]} {[%emt 00:00:13]} 90. Ng4 {[%clk 00:07:17]} {[%emt 00:01:31]}
Rh4 {[%clk 00:04:36]} {[%emt 00:01:03]} 91. Ne3 {[%clk 00:07:29]} {[%emt
00:00:19]} Rh5 {[%clk 00:05:00]} {[%emt 00:00:06]} 92. Nf5 {[%clk 00:07:56]}
{[%emt 00:00:03]} Kb4 {[%clk 00:05:21]} {[%emt 00:00:09]} 93. Ke4 {[%clk
00:08:22]} {[%emt 00:00:04]} Rh8 {[%clk 00:05:24]} {[%emt 00:00:24]} 94. Nd6
{[%clk 00:08:21]} {[%emt 00:00:33]} Rh4 {[%clk 00:05:15]} {[%emt 00:00:39]} 95.
Kd3 {[%clk 00:08:12]} {[%emt 00:00:40]} Rh3+ {[%clk 00:05:32]} {[%emt
00:00:12]} 96. Kd4 {[%clk 00:08:40]} {[%emt 00:00:03]} Rh4 {[%clk 00:05:57]}
{[%emt 00:00:05]} 97. Ne4 {[%clk 00:09:06]} {[%emt 00:00:03]} Kb5 {[%clk
00:06:24]} {[%emt 00:00:04]} 98. Rc1 {[%clk 00:09:03]} {[%emt 00:00:34]} Kb6
{[%clk 00:06:49]} {[%emt 00:00:05]} 99. Rg1 {[%clk 00:08:58]} {[%emt 00:00:34]}
Rh6 {[%clk 00:06:45]} {[%emt 00:00:32]} 100. Kd5 {[%clk 00:09:04]} {[%emt
00:00:25]} Rh5+ {[%clk 00:07:07]} {[%emt 00:00:08]} 101. Ng5 {[%clk 00:09:20]}
{[%emt 00:00:15]} Kc7 {[%clk 00:06:52]} {[%emt 00:00:42]} 102. Ke6 {[%clk
00:09:44]} {[%emt 00:00:09]} Rh6+ {[%clk 00:07:10]} {[%emt 00:00:11]} 103. Ke5
{[%clk 00:10:02]} {[%emt 00:00:13]} Rh5 {[%clk 00:07:30]} {[%emt 00:00:10]} 104.
Kf6 {[%clk 00:10:25]} {[%emt 00:00:07]} Kc6 {[%clk 00:07:38]} {[%emt 00:00:20]}
105. Nf7 {[%clk 00:10:44]} {[%emt 00:00:13]} Rh2 {[%clk 00:07:19]} {[%emt
00:00:48]} 106. Ke6 {[%clk 00:11:07]} {[%emt 00:00:08]} Kc5 {[%clk 00:07:43]}
{[%emt 00:00:06]} 107. Ne5 {[%clk 00:11:30]} {[%emt 00:00:07]} Rh6+ {[%clk
00:08:04]} {[%emt 00:00:08]} 108. Kf5 {[%clk 00:11:54]} {[%emt 00:00:07]} Rh5
{[%clk 00:08:26]} {[%emt 00:00:07]} 109. Ke4 {[%clk 00:12:23]} {[%emt
00:00:02]} Rh4+ {[%clk 00:08:50]} {[%emt 00:00:06]} 110. Ng4 {[%clk 00:12:49]}
{[%emt 00:00:04]} Kd6 {[%clk 00:08:52]} {[%emt 00:00:26]} 111. Kf5 {[%clk
00:13:13]} {[%emt 00:00:08]} Rh5+ {[%clk 00:09:07]} {[%emt 00:00:14]} 112. Kf6
{[%clk 00:13:42]} {[%emt 00:00:02]} Rh3 {[%clk 00:09:18]} {[%emt 00:00:18]} 113.
Rd1+ {[%clk 00:14:08]} {[%emt 00:00:04]} Kc5 {[%clk 00:09:40]} {[%emt
00:00:07]} 114. Ke5 {[%clk 00:14:25]} {[%emt 00:00:15]} Rh5 {[%clk 00:09:59]}
{[%emt 00:00:10]} 115. Kf4 {[%clk 00:14:41]} {[%emt 00:00:15]} Rh4 {[%clk
00:09:48]} {[%emt 00:00:10]} 1/2-1/2

[Event "FIDE Women's Grand Swiss 2023"]
[Site "Villa Marina, Douglas, Isle of Man, Isle Of Man"]
[Date "2023.10.29"]
[Round "5.20"]
[White "Sandu, Mihaela"]
[Black "Wagner, Dinara"]
[Result "1/2-1/2"]
[TimeControl "40/90 + 30 + 30s/move"]
[WhiteFideId "1204327"]
[BlackFideId "24157570"]
[WhiteElo "2298"]
[BlackElo "2461"]

1. e4 {[%clk 01:30:57]} {[%emt 00:00:02]} c5 {[%clk 01:30:55]} {[%emt
00:00:05]} 2. Nf3 {[%clk 01:31:23]} {[%emt 00:00:05]} d6 {[%clk 01:31:21]}
{[%emt 00:00:04]} 3. d4 {[%clk 01:31:49]} {[%emt 00:00:04]} cxd4 {[%clk
01:31:49]} {[%emt 00:00:02]} 4. Nxd4 {[%clk 01:32:14]} {[%emt 00:00:05]} Nf6
{[%clk 01:32:16]} {[%emt 00:00:03]} 5. Nc3 {[%clk 01:32:40]} {[%emt 00:00:04]}
a6 {[%clk 01:32:33]} {[%emt 00:00:14]} 6. Be2 {[%clk 01:31:18]} {[%emt
00:01:50]} e5 {[%clk 01:32:56]} {[%emt 00:00:07]} 7. Nf3 {[%clk 01:31:01]}
{[%emt 00:00:48]} Be7 {[%clk 01:33:20]} {[%emt 00:00:07]} 8. Be3 {[%clk
01:30:53]} {[%emt 00:00:37]} O-O {[%clk 01:28:00]} {[%emt 00:05:50]} 9. O-O
{[%clk 01:27:50]} {[%emt 00:03:32]} h6 {[%clk 01:23:05]} {[%emt 00:05:25]} 10.
Bc4 {[%clk 01:13:50]} {[%emt 00:14:30]} Nc6 {[%clk 01:22:09]} {[%emt 00:01:26]}
11. Qe2 {[%clk 01:10:53]} {[%emt 00:03:27]} Na5 {[%clk 01:09:12]} {[%emt
00:13:28]} 12. Bd5 {[%clk 01:10:49]} {[%emt 00:00:33]} Nxd5 {[%clk 01:07:24]}
{[%emt 00:02:18]} 13. Nxd5 {[%clk 01:11:12]} {[%emt 00:00:07]} Nc6 {[%clk
01:07:41]} {[%emt 00:00:14]} 14. Bb6 {[%clk 01:10:59]} {[%emt 00:00:42]} Qd7
{[%clk 01:07:51]} {[%emt 00:00:20]} 15. Rfd1 {[%clk 01:07:45]} {[%emt
00:03:44]} f5 {[%clk 00:56:57]} {[%emt 00:11:26]} 16. exf5 {[%clk 00:50:47]}
{[%emt 00:17:27]} Rxf5 {[%clk 00:57:21]} {[%emt 00:00:06]} 17. Nd2 {[%clk
00:51:10]} {[%emt 00:00:07]} Bf8 {[%clk 00:56:16]} {[%emt 00:01:35]} 18. Ne4
{[%clk 00:51:11]} {[%emt 00:00:28]} Rf7 {[%clk 00:49:51]} {[%emt 00:06:56]} 19.
f3 {[%clk 00:47:46]} {[%emt 00:03:55]} a5 {[%clk 00:43:20]} {[%emt 00:07:02]}
20. c4 {[%clk 00:44:12]} {[%emt 00:04:02]} Ra6 {[%clk 00:38:13]} {[%emt
00:05:38]} 21. Kh1 {[%clk 00:36:24]} {[%emt 00:08:18]} Qf5 {[%clk 00:35:56]}
{[%emt 00:02:47]} 22. Qe3 {[%clk 00:29:54]} {[%emt 00:07:00]} Nb4 {[%clk
00:25:36]} {[%emt 00:10:50]} 23. Nxb4 {[%clk 00:20:59]} {[%emt 00:09:25]} axb4
{[%clk 00:26:01]} {[%emt 00:00:04]} 24. c5 {[%clk 00:11:58]} {[%emt 00:09:32]}
dxc5 {[%clk 00:23:45]} {[%emt 00:02:46]} 25. Bxc5 {[%clk 00:12:00]} {[%emt
00:00:27]} Be6 {[%clk 00:20:56]} {[%emt 00:03:19]} 26. b3 {[%clk 00:08:18]}
{[%emt 00:04:13]} Qf4 {[%clk 00:15:15]} {[%emt 00:06:10]} 27. Qxf4 {[%clk
00:06:02]} {[%emt 00:02:46]} exf4 {[%clk 00:15:33]} {[%emt 00:00:12]} 28. Rd8
{[%clk 00:04:43]} {[%emt 00:01:49]} Bxb3 {[%clk 00:14:02]} {[%emt 00:02:02]} 29.
Bxb4 {[%clk 00:02:58]} {[%emt 00:02:15]} Bxa2 {[%clk 00:11:44]} {[%emt
00:02:48]} 30. Nd6 {[%clk 00:02:56]} {[%emt 00:00:32]} Rf6 {[%clk 00:11:11]}
{[%emt 00:01:03]} 31. Ne4 {[%clk 00:02:34]} {[%emt 00:00:52]} Rf5 {[%clk
00:09:35]} {[%emt 00:02:06]} 32. h4 {[%clk 00:02:06]} {[%emt 00:00:57]} g5
{[%clk 00:07:37]} {[%emt 00:02:30]} 33. h5 {[%clk 00:01:01]} {[%emt 00:01:34]}
Ra4 {[%clk 00:02:34]} {[%emt 00:05:33]} 1/2-1/2